fUSD/lending_fUSD_20240301
["ID","MTS","AMOUNT","RATE_DAILY","PERIOD"]
[316012015,1709325084991,-500.0,0.00022465,2]
[316012016,1709325085004,-500.0,0.00022465,2]
[316012017,1709325085015,-500.0,0.00022465,2]
[316012018,1709325085026,-500.0,0.00022465,2]
[316012019,1709325085038,-500.0,0.00022465,2]
[316012020,1709325085050,-500.0,0.00022465,2]
[316012021,1709325085061,-500.0,0.00022465,2]
[316012022,1709325085072,-500.0,0.00022465,2]
[316012023,1709325085085,-500.0,0.00022465,2]
[316012024,1709325085097,-500.0,0.00022465,2]
[316012025,1709325085108,-500.0,0.00022465,2]
[316012026,1709325085118,-500.0,0.00022465,2]
[316012027,1709325085130,-500.0,0.00022465,2]
[316012028,1709325085141,-500.0,0.00022465,2]
[316012029,1709325085152,-500.0,0.00022465,2]
[316012030,1709325085162,-500.0,0.00022465,2]
[316012031,1709325085173,-500.0,0.00022465,2]
[316012032,1709325085184,-500.0,0.00022465,2]
[316012033,1709325085196,-500.0,0.00022465,2]
[316012034,1709325085208,-500.0,0.00022465,2]
[316012035,1709325085218,-500.0,0.00022465,2]
[316012036,1709325085229,-500.0,0.00022465,2]
[316012037,1709325085239,-500.0,0.00022465,2]
[316012038,1709325085249,-500.0,0.00022465,2]
[316012039,1709325085259,-500.0,0.00022465,2]
[316012040,1709325085270,-500.0,0.00022465,2]
[316012041,1709325085280,-500.0,0.00022465,2]
[316012042,1709325085290,-500.0,0.00022465,2]
[316012043,1709325085300,-500.0,0.00022465,2]
[316012044,1709325085309,-500.0,0.00022465,2]
[316012045,1709325085319,-500.0,0.00022465,2]
[316012046,1709325085329,-500.0,0.00022465,2]
[316012047,1709325085338,-511.36,0.00022465,2]
[316012048,1709325085348,-567.94717643,0.00022465,2]
[316012049,1709325085359,-500.0,0.00022465,2]
[316012050,1709325085369,-500.0,0.00022465,2]
[316012051,1709325085378,-500.0,0.00022465,2]
[316012052,1709325085388,-1158.81,0.00022465,2]
[316012053,1709325085398,-500.0,0.00022465,2]
[316012054,1709325085408,-500.0,0.00022465,2]
[316012055,1709325085418,-500.0,0.00022465,2]
[316012056,1709325085427,-500.0,0.00022465,2]
[316012057,1709325085437,-500.0,0.00022465,2]
[316012058,1709325085448,-500.0,0.00022465,2]
[316012059,1709325085458,-500.0,0.00022465,2]
[316012060,1709325085467,-500.0,0.00022465,2]
[316012061,1709325085477,-510.02,0.00022465,2]
[316012062,1709325085486,-500.0,0.00022465,2]
[316012063,1709325085496,-500.0,0.00022465,2]
[316012064,1709325085505,-500.0,0.00022465,2]
[316012065,1709325085515,-500.0,0.00022465,2]
[316012066,1709325085525,-500.0,0.00022465,2]
[316012067,1709325085535,-500.0,0.00022465,2]
[316012068,1709325085544,-500.0,0.00022465,2]
[316012069,1709325085554,-500.0,0.00022465,2]
[316012070,1709325085564,-500.0,0.00022465,2]
[316012071,1709325085575,-500.0,0.00022465,2]
[316012072,1709325085585,-500.0,0.00022465,2]
[316012073,1709325085594,-500.0,0.00022465,2]
[316012074,1709325085604,-500.0,0.00022465,2]
[316012075,1709325085614,-500.0,0.00022465,2]
[316012076,1709325085624,-500.0,0.00022465,2]
[316012077,1709325085634,-500.0,0.00022465,2]
[316012078,1709325085645,-500.0,0.00022465,2]
[316012079,1709325085655,-500.0,0.00022465,2]
[316012080,1709325085665,-582.8,0.00022465,2]
[316012081,1709325085676,-500.0,0.00022465,2]
[316012082,1709325085686,-1096.14,0.00022465,2]
[316012083,1709325085696,-500.0,0.00022465,2]
[316012084,1709325085706,-500.0,0.00022465,2]
[316012085,1709325085715,-500.0,0.00022465,2]
[316012086,1709325085725,-500.0,0.00022465,2]
[316012087,1709325085734,-500.0,0.00022465,2]
[316012088,1709325085744,-1058.72,0.00022465,2]
[316012089,1709325085758,-1249.03,0.00022465,2]
[316012090,1709325085768,-500.0,0.00022465,2]
[316012091,1709325085778,-1276.8,0.00022465,2]
[316012092,1709325085787,-500.0,0.00022465,2]
[316012093,1709325085798,-936.62,0.00022465,2]
[316012094,1709325085808,-500.0,0.00022465,2]
[316012095,1709325085818,-611.3,0.00022465,2]
[316012096,1709325085829,-621.36998101,0.00022465,2]
[316012097,1709325085839,-757.45,0.00022465,2]
[316012098,1709325085849,-500.0,0.00022465,2]
[316012099,1709325085859,-500.0,0.00022465,2]
[316012100,1709325085869,-500.0,0.00022465,2]
[316012101,1709325085879,-1137.5,0.00022465,2]
[316012102,1709325085889,-500.0,0.00022465,2]
[316012103,1709325085899,-1015.22,0.00022465,2]
[316012104,1709325085909,-660.66,0.00022465,2]
[316012105,1709325085919,-1087.44,0.00022465,2]
[316012106,1709325085931,-721.12,0.00022465,2]
[316012107,1709325085941,-211.02367996,0.00022465,2]
[316012108,1709325085952,-500.0,0.00022465,2]
[316012109,1709325085962,-772.6,0.00022465,2]
[316012110,1709325085973,-681.29,0.00022465,2]
[316012111,1709325085983,-803.95,0.00022465,2]
[316012112,1709325085995,-500.0,0.00022465,2]
[316012113,1709325086006,-500.0,0.00022465,2]
[316012114,1709325086017,-500.0,0.00022465,2]
[316012115,1709325086028,-500.0,0.00022465,2]
[316012116,1709325086038,-500.0,0.00022465,2]
[316012117,1709325086049,-500.0,0.00022465,2]
[316012118,1709325086059,-500.0,0.00022465,2]
[316012119,1709325086070,-500.0,0.00022465,2]
[316012120,1709325086081,-805.74,0.00022465,2]
[316012121,1709325086091,-500.0,0.00022465,2]
[316012122,1709325086101,-762.15,0.00022465,2]
[316012123,1709325086112,-609.16,0.00022465,2]
[316012124,1709325086122,-500.0,0.00022465,2]
[316012125,1709325086132,-500.0,0.00022465,2]
[316012126,1709325086143,-848.53,0.00022465,2]
[316012127,1709325086153,-500.0,0.00022465,2]
[316012128,1709325086163,-500.0,0.00022465,2]
[316012129,1709325086173,-500.0,0.00022465,2]
[316012130,1709325086184,-500.0,0.00022465,2]
[316012131,1709325086194,-500.0,0.00022465,2]
[316012132,1709325086208,-507.2,0.00022465,2]
[316012133,1709325086219,-1065.74,0.00022465,2]
[316012134,1709325086230,-1592.13,0.00022465,2]
[316012135,1709325086241,-500.0,0.00022465,2]
[316012136,1709325086252,-500.0,0.00022465,2]
[316012137,1709325086262,-360.48,0.00022465,2]
[316012138,1709325086274,-500.0,0.00022465,2]
[316012139,1709325086285,-500.0,0.00022465,2]
[316012140,1709325086296,-865.42,0.00022465,2]
[316012141,1709325086306,-500.0,0.00022465,2]
[316012142,1709325086317,-826.68,0.00022465,2]
[316012143,1709325086327,-500.0,0.00022465,2]
[316012144,1709325086337,-500.0,0.00022465,2]
[316012145,1709325086348,-500.0,0.00022465,2]
[316012146,1709325086358,-500.0,0.00022465,2]
[316012147,1709325086368,-553.43,0.00022465,2]
[316012148,1709325086379,-500.0,0.00022465,2]
[316012149,1709325086389,-1042.29,0.00022465,2]
[316012150,1709325086400,-500.0,0.00022465,2]
[316012151,1709325086409,-500.0,0.00022465,2]
[316012152,1709325086645,-284.90503242,0.00022465,2]
[316012153,1709325086659,-500.0,0.00022465,2]
[316012154,1709325086669,-512.5,0.00022465,2]
[316012155,1709325086678,-500.0,0.00022465,2]
[316012156,1709325086687,-173.74,0.00022465,2]
[316012157,1709325086698,-500.0,0.00022465,2]
[316012158,1709325086707,-500.0,0.00022465,2]
[316012159,1709325086717,-500.0,0.00022465,2]
[316012160,1709325086726,-500.0,0.00022465,2]
[316012161,1709325086735,-500.0,0.00022465,2]
[316012162,1709325086744,-500.0,0.00022465,2]
[316012163,1709325086754,-500.0,0.00022465,2]
[316012164,1709325086763,-500.0,0.00022465,2]
[316012165,1709325086773,-500.0,0.00022465,2]
[316012166,1709325086782,-500.0,0.00022465,2]
[316012167,1709325086791,-386.71205495,0.00022465,2]
[316012168,1709325086801,-500.0,0.00022465,2]
[316012169,1709325086811,-500.0,0.00022465,2]
[316012170,1709325086821,-1195.6,0.00022465,2]
[316012171,1709325086830,-500.0,0.00022465,2]
[316012172,1709325086840,-500.0,0.00022465,2]
[316012173,1709325086849,-500.0,0.00022465,2]
[316012174,1709325086859,-500.0,0.00022465,2]
[316012175,1709325086869,-500.0,0.00022465,2]
[316012176,1709325086878,-500.0,0.00022465,2]
[316012177,1709325086888,-597.98,0.00022465,2]
[316012178,1709325086897,-500.0,0.00022465,2]
[316012179,1709325086906,-802.71,0.00022465,2]
[316012180,1709325086917,-500.0,0.00022465,2]
[316012181,1709325086926,-500.0,0.00022465,2]
[316012182,1709325086935,-500.0,0.00022465,2]
[316012183,1709325086945,-500.0,0.00022465,2]
[316012184,1709325086955,-500.0,0.00022465,2]
[316012185,1709325086965,-500.0,0.00022465,2]
[316012186,1709325086974,-500.0,0.00022465,2]
[316012187,1709325086984,-500.0,0.00022465,2]
[316012188,1709325086996,-500.0,0.00022465,2]
[316012189,1709325087005,-500.0,0.00022465,2]
[316012190,1709325087015,-500.0,0.00022465,2]
[316012191,1709325087025,-500.0,0.00022465,2]
[316012192,1709325087036,-500.0,0.00022465,2]
[316012193,1709325087046,-574.95,0.00022465,2]
[316012194,1709325087055,-500.0,0.00022465,2]
[316012195,1709325087065,-500.0,0.00022465,2]
[316012196,1709325087074,-500.0,0.00022465,2]
[316012197,1709325087290,-500.0,0.00022465,2]
[316012198,1709325087300,-500.0,0.00022465,2]
[316012199,1709325087310,-740.6,0.00022465,2]
[316012200,1709325087319,-876.19,0.00022465,2]
[316012201,1709325087329,-500.0,0.00022465,2]
[316012202,1709325087339,-676.42,0.00022465,2]
[316012203,1709325087349,-500.0,0.00022465,2]
[316012204,1709325087358,-500.0,0.00022465,2]
[316012205,1709325087368,-500.0,0.00022465,2]
[316012206,1709325087377,-514.56,0.00022465,2]
[316012207,1709325087387,-769.11,0.00022465,2]
[316012208,1709325087396,-595.86,0.00022465,2]
[316012209,1709325087406,-500.0,0.00022465,2]
[316012210,1709325087415,-347.92,0.00022465,2]
[316012211,1709325087424,-500.0,0.00022465,2]
[316012212,1709325087434,-500.0,0.00022465,2]
[316012213,1709325087443,-500.0,0.00022465,2]
[316012214,1709325087454,-457.81,0.00022465,2]
[316012215,1709325087464,-515.51,0.00022465,2]
[316012216,1709325087473,-500.0,0.00022465,2]
[316012217,1709325087482,-500.0,0.00022465,2]
[316012218,1709325087491,-500.0,0.00022465,2]
[316012219,1709325087501,-517.1631947,0.00022465,2]
[316012220,1709325087510,-500.0,0.00022465,2]
[316012221,1709325087519,-150.0,0.00022465,2]
[316012222,1709325087528,-500.0,0.00022465,2]
[316012223,1709325087537,-1494.08,0.00022465,2]
[316012224,1709325087547,-500.0,0.00022465,2]
[316012225,1709325087557,-500.0,0.00022465,2]
[316012226,1709325087566,-151.0,0.00022465,2]
[316012227,1709325087576,-500.0,0.00022465,2]
[316012228,1709325087585,-500.0,0.00022465,2]
[316012229,1709325087594,-500.0,0.00022465,2]
[316012230,1709325087603,-500.0,0.00022465,2]
[316012231,1709325087613,-500.0,0.00022465,2]
[316012232,1709325087622,-500.0,0.00022465,2]
[316012233,1709325087631,-500.0,0.00022465,2]
[316012234,1709325087640,-500.0,0.00022465,2]
[316012235,1709325087650,-500.0,0.00022465,2]
[316012236,1709325087660,-500.0,0.00022465,2]
[316012237,1709325087670,-500.0,0.00022465,2]
[316012238,1709325087679,-586.84493976,0.00022465,2]
[316012239,1709325087688,-500.0,0.00022465,2]
[316012240,1709325087698,-1095.13,0.00022465,2]
[316012241,1709325087708,-500.0,0.00022465,2]
[316012242,1709325087716,-500.0,0.00022465,2]
[316012243,1709325087726,-500.0,0.00022465,2]
[316012244,1709325087735,-576.13,0.00022465,2]
[316012245,1709325087745,-793.28,0.00022465,2]
[316012246,1709325087755,-649.5,0.00022465,2]
[316012247,1709325087765,-500.0,0.00022465,2]
[316012248,1709325087775,-500.0,0.00022465,2]
[316012249,1709325087785,-500.0,0.00022465,2]
[316012250,1709325087794,-500.0,0.00022465,2]
[316012251,1709325087804,-807.39,0.00022465,2]
[316012252,1709325087813,-777.74,0.00022465,2]
[316012253,1709325087822,-500.0,0.00022465,2]
[316012254,1709325087832,-500.0,0.00022465,2]
[316012255,1709325087841,-5832.94,0.00022465,2]
[316012256,1709325087850,-500.0,0.00022465,2]
[316012257,1709325087860,-2556.17,0.00022465,2]
[316012258,1709325087869,-500.0,0.00022465,2]
[316012259,1709325087879,-500.0,0.00022465,2]
[316012260,1709325087889,-500.0,0.00022465,2]
[316012261,1709325087898,-630.96,0.00022465,2]
[316012262,1709325087908,-500.0,0.00022465,2]
[316012263,1709325087918,-500.0,0.00022465,2]
[316012264,1709325087927,-500.0,0.00022465,2]
[316012265,1709325087937,-2541.7,0.00022465,2]
[316012266,1709325087946,-717.66,0.00022465,2]
[316012267,1709325087957,-500.0,0.00022465,2]
[316012268,1709325087966,-1190.85,0.00022465,2]
[316012269,1709325087977,-500.0,0.00022465,2]
[316012270,1709325087987,-1257.43,0.00022465,2]
[316012271,1709325087998,-500.0,0.00022465,2]
[316012272,1709325088008,-1933.92,0.00022465,2]
[316012273,1709325088025,-291.40895209,0.00022465,2]
[316012274,1709325088036,-500.0,0.00022465,2]
[316012275,1709325088045,-6685.34,0.00022465,2]
[316012276,1709325088055,-500.0,0.00022465,2]
[316012277,1709325088065,-798.45,0.00022465,2]
[316012278,1709325088074,-500.0,0.00022465,2]
[316012279,1709325088084,-833.2,0.00022465,2]
[316012280,1709325088095,-500.0,0.00022465,2]
[316012281,1709325088106,-500.0,0.00022465,2]
[316012282,1709325088116,-13127.88,0.00022465,2]
[316012283,1709325088126,-4843.16,0.00022465,2]
[316012284,1709325088135,-739.55,0.00022465,2]
[316012285,1709325088146,-500.0,0.00022465,2]
[316012286,1709325088156,-870.9,0.00022465,2]
[316012287,1709325088165,-21180.03,0.00022465,2]
[316012288,1709325088175,-2351.69,0.00022465,2]
[316012289,1709325088185,-500.0,0.00022465,2]
[316012290,1709325088194,-23347.63,0.00022465,2]
[316012291,1709325088206,-500.0,0.00022465,2]
[316012292,1709325088216,-4956.68,0.00022465,2]
[316012293,1709325088226,-500.0,0.00022465,2]
[316012294,1709325088236,-500.0,0.00022465,2]
[316012295,1709325088247,-1558.45,0.00022465,2]
[316012296,1709325088257,-500.0,0.00022465,2]
[316012297,1709325088268,-3125.66,0.00022465,2]
[316012298,1709325088280,-667.12,0.00022465,2]
[316012299,1709325088290,-2738.18,0.00022465,2]
[316012300,1709325088300,-500.0,0.00022465,2]
[316012301,1709325088310,-500.0,0.00022465,2]
[316012302,1709325088319,-500.0,0.00022465,2]
[316012303,1709325088330,-500.0,0.00022465,2]
[316012304,1709325088340,-833.39,0.00022465,2]
[316012305,1709325088350,-500.0,0.00022465,2]
[316012306,1709325088359,-2229.45,0.00022465,2]
[316012307,1709325088369,-610.29,0.00022465,2]
[316012308,1709325088378,-1678.54,0.00022465,2]
[316012309,1709325088388,-2098.48,0.00022465,2]
[316012310,1709325088398,-503.81,0.00022465,2]
[316012311,1709325088407,-786.34,0.00022465,2]
[316012312,1709325088416,-500.0,0.00022465,2]
[316012313,1709325088426,-500.0,0.00022465,2]
[316012314,1709325088435,-1899.02,0.00022465,2]
[316012315,1709325088444,-2418.44,0.00022465,2]
[316012316,1709325088454,-22491.46,0.00022465,2]
[316012317,1709325088464,-1323.61,0.00022465,2]
[316012318,1709325088473,-593.44662226,0.00022465,2]
[316012319,1709325088484,-983.93,0.00022465,2]
[316012320,1709325088493,-1814.42,0.00022465,2]
[316012321,1709325088502,-500.0,0.00022465,2]
[316012322,1709325088511,-1115.97,0.00022465,2]
[316012323,1709325088520,-1675.44,0.00022465,2]
[316012324,1709325088529,-767.44,0.00022465,2]
[316012325,1709325088539,-500.0,0.00022465,2]
[316012326,1709325088548,-500.0,0.00022465,2]
[316012327,1709325088557,-896.73,0.00022465,2]
[316012328,1709325088567,-500.0,0.00022465,2]
[316012329,1709325088577,-507.29475998,0.00022465,2]
[316012330,1709325088586,-802.5,0.00022465,2]
[316012331,1709325088595,-1440.38,0.00022465,2]
[316012332,1709325088604,-549.90426826,0.00022465,2]
[316012333,1709325088613,-1523.08,0.00022465,2]
[316012334,1709325088623,-503.18,0.00022465,2]
[316012335,1709325088631,-1165.62,0.00022465,2]
[316012336,1709325088641,-500.0,0.00022465,2]
[316012337,1709325088650,-601.85,0.00022465,2]
[316012338,1709325088659,-1246.8,0.00022465,2]
[316012339,1709325088669,-539.77,0.00022465,2]
[316012340,1709325088678,-1621.23,0.00022465,2]
[316012341,1709325088688,-1237.56,0.00022465,2]
[316012342,1709325088697,-500.0,0.00022465,2]
[316012343,1709325088707,-1145.09,0.00022465,2]
[316012344,1709325088717,-500.0,0.00022465,2]
[316012345,1709325088726,-3124.61,0.00022465,2]
[316012346,1709325088735,-500.0,0.00022465,2]
[316012347,1709325088745,-1329.17,0.00022465,2]
[316012348,1709325088755,-151.0,0.00022465,7]
[316012349,1709325088765,-500.0,0.00022465,2]
[316012350,1709325088775,-1000.45,0.00022465,2]
[316012351,1709325088786,-500.0,0.00022465,2]
[316012352,1709325088795,-3328.11,0.00022465,2]
[316012353,1709325088804,-500.0,0.00022465,2]
[316012354,1709325088813,-1846.84,0.00022465,2]
[316012355,1709325088822,-1629.87,0.00022465,2]
[316012356,1709325088831,-500.0,0.00022465,2]
[316012357,1709325088841,-382.42503708,0.00022465,2]
[316012358,1709325088850,-1049.82,0.00022465,2]
[316012359,1709325088860,-1099.37,0.00022465,2]
[316012360,1709325088870,-333.39803888,0.00022465,2]
[316012361,1709325088879,-530.71,0.00022465,2]
[316012362,1709325088888,-841.32,0.00022465,2]
[316012363,1709325088898,-668.88,0.00022465,2]
[316012364,1709325088907,-796.92,0.00022465,2]
[316012365,1709325088917,-500.0,0.00022465,2]
[316012366,1709325088926,-531.12,0.00022465,2]
[316012367,1709325088935,-2334.83,0.00022465,2]
[316012368,1709325088944,-897.19,0.00022465,2]
[316012369,1709325088954,-816.07,0.00022465,2]
[316012370,1709325088964,-3575.44,0.00022465,2]
[316012371,1709325088973,-500.0,0.00022465,2]
[316012372,1709325088982,-1761.64,0.00022465,2]
[316012373,1709325088992,-1692.3,0.00022465,2]
[316012374,1709325089002,-500.0,0.00022465,2]
[316012375,1709325089012,-500.0,0.00022465,2]
[316012376,1709325089023,-628.25,0.00022465,2]
[316012377,1709325089032,-1144.26,0.00022465,2]
[316012378,1709325089042,-1413.89,0.00022465,2]
[316012379,1709325089051,-1309.85,0.00022465,2]
[316012380,1709325089061,-2454.74,0.00022465,2]
[316012381,1709325089070,-500.0,0.00022465,2]
[316012382,1709325089079,-500.0,0.00022465,2]
[316012383,1709325089090,-500.0,0.00022465,2]
[316012384,1709325089099,-1110.9,0.00022465,2]
[316012385,1709325089109,-541.55,0.00022465,2]
[316012386,1709325089119,-697.92,0.00022465,2]
[316012387,1709325089129,-2314.14,0.00022465,2]
[316012388,1709325089138,-689.43,0.00022465,2]
[316012389,1709325089148,-898.59,0.00022465,2]
[316012390,1709325089158,-705.17,0.00022465,2]
[316012391,1709325089240,-547.49,0.00022465,2]
[316012392,1709325089250,-1018.24,0.00022465,2]
[316012393,1709325089260,-500.0,0.00022465,2]
[316012394,1709325089269,-645.07,0.00022465,2]
[316012395,1709325089279,-1138.84,0.00022465,2]
[316012396,1709325089288,-13496.9,0.00022465,2]
[316012397,1709325089297,-500.0,0.00022465,2]
[316012398,1709325089307,-500.0,0.00022465,2]
[316012399,1709325089316,-1245.99,0.00022465,2]
[316012400,1709325089325,-771.59,0.00022465,2]
[316012401,1709325089335,-4551.14,0.00022465,2]
[316012402,1709325089344,-2194.49,0.00022465,2]
[316012403,1709325089354,-1300.41,0.00022465,2]
[316012404,1709325089363,-500.0,0.00022465,2]
[316012405,1709325089373,-858.27,0.00022465,2]
[316012406,1709325089382,-500.0,0.00022465,2]
[316012407,1709325089391,-1006.76,0.00022465,2]
[316012408,1709325089400,-797.83,0.00022465,2]
[316012409,1709325089409,-648.54,0.00022465,2]
[316012410,1709325089419,-500.0,0.00022465,2]
[316012411,1709325089428,-3937.49,0.00022465,2]
[316012412,1709325089437,-1738.03,0.00022465,2]
[316012413,1709325089446,-1746.33,0.00022465,2]
[316012414,1709325089457,-1501.28,0.00022465,2]
[316012415,1709325089465,-822.79,0.00022465,2]
[316012416,1709325089475,-2615.6,0.00022465,2]
[316012417,1709325089484,-500.0,0.00022465,2]
[316012418,1709325089494,-909.65,0.00022465,2]
[316012419,1709325089504,-500.0,0.00022465,2]
[316012420,1709325089513,-1731.17,0.00022465,2]
[316012421,1709325089522,-500.0,0.00022465,2]
[316012422,1709325089531,-1095.16,0.00022465,2]
[316012423,1709325089540,-3436.44,0.00022465,2]
[316012424,1709325089550,-796.3,0.00022465,2]
[316012425,1709325089559,-500.0,0.00022465,2]
[316012426,1709325089568,-605.08,0.00022465,2]
[316012427,1709325089577,-695.81,0.00022465,2]
[316012428,1709325089587,-1719.11,0.00022465,2]
[316012429,1709325089597,-1649.56,0.00022465,2]
[316012430,1709325089606,-500.0,0.00022465,2]
[316012431,1709325089616,-695.1,0.00022465,2]
[316012432,1709325089625,-1849.33,0.00022465,2]
[316012433,1709325089634,-500.0,0.00022465,2]
[316012434,1709325089644,-500.0,0.00022465,2]
[316012435,1709325089653,-596.04,0.00022465,2]
[316012436,1709325089662,-802.09,0.00022465,2]
[316012437,1709325089671,-1408.66,0.00022465,2]
[316012438,1709325089681,-914.91,0.00022465,2]
[316012439,1709325089690,-1096.97,0.00022465,2]
[316012440,1709325089699,-3156.86,0.00022465,2]
[316012441,1709325089709,-2515.07,0.00022465,2]
[316012442,1709325089718,-500.0,0.00022465,2]
[316012443,1709325089728,-500.0,0.00022465,2]
[316012444,1709325089737,-617.56758821,0.00022465,2]
[316012445,1709325089746,-205.004529,0.00022465,7]
[316012446,1709325089755,-576.12,0.00022465,2]
[316012447,1709325089765,-1405.35,0.00022465,2]
[316012448,1709325089775,-500.0,0.00022465,2]
[316012449,1709325089784,-205.004529,0.00022465,7]
[316012450,1709325089793,-571.01,0.00022465,2]
[316012451,1709325089804,-829.65,0.00022465,2]
[316012452,1709325089814,-500.0,0.00022465,2]
[316012453,1709325089823,-1280.88,0.00022465,2]
[316012454,1709325089832,-500.0,0.00022465,2]
[316012455,1709325089841,-2102.13,0.00022465,2]
[316012456,1709325089850,-1130.38,0.00022465,2]
[316012457,1709325089859,-4965.87,0.00022465,2]
[316012458,1709325089869,-500.0,0.00022465,2]
[316012459,1709325089878,-9922.92,0.00022465,2]
[316012460,1709325089887,-500.0,0.00022465,2]
[316012461,1709325089896,-500.0,0.00022465,2]
[316012462,1709325089905,-500.0,0.00022465,2]
[316012463,1709325089915,-500.0,0.00022465,2]
[316012464,1709325089924,-798.06,0.00022465,2]
[316012465,1709325089934,-500.0,0.00022465,2]
[316012466,1709325089943,-730.32,0.00022465,2]
[316012467,1709325089952,-520.32,0.00022465,2]
[316012468,1709325089961,-500.0,0.00022465,2]
[316012469,1709325089971,-3463.0,0.00022465,2]
[316012470,1709325089980,-500.0,0.00022465,2]
[316012471,1709325089989,-500.0,0.00022465,2]
[316012472,1709325089998,-1879.42,0.00022465,2]
[316012473,1709325090008,-928.45,0.00022465,2]
[316012474,1709325090021,-500.0,0.00022465,2]
[316012475,1709325090030,-5669.44,0.00022465,2]
[316012476,1709325090040,-1230.85,0.00022465,2]
[316012477,1709325090049,-500.0,0.00022465,2]
[316012478,1709325090059,-2980.76,0.00022465,2]
[316012479,1709325090069,-500.0,0.00022465,2]
[316012480,1709325090078,-1281.68,0.00022465,2]
[316012481,1709325090087,-500.0,0.00022465,2]
[316012482,1709325090097,-500.0,0.00022465,2]
[316012483,1709325090106,-500.0,0.00022465,2]
[316012484,1709325090115,-791.17,0.00022465,2]
[316012485,1709325090125,-8137.03,0.00022465,2]
[316012486,1709325090134,-5463.14,0.00022465,2]
[316012487,1709325090143,-726.54,0.00022465,2]
[316012488,1709325090152,-500.0,0.00022465,2]
[316012489,1709325090161,-9818.2,0.00022465,2]
[316012490,1709325090170,-500.0,0.00022465,2]
[316012491,1709325090180,-988.29,0.00022465,2]
[316012492,1709325090189,-500.0,0.00022465,2]
[316012493,1709325090198,-500.0,0.00022465,2]
[316012494,1709325090208,-500.0,0.00022465,2]
[316012495,1709325090218,-500.0,0.00022465,2]
[316012496,1709325090227,-983.46,0.00022465,2]
[316012497,1709325090236,-2607.72,0.00022465,2]
[316012498,1709325090246,-12050.28,0.00022465,2]
[316012499,1709325090256,-500.0,0.00022465,2]
[316012500,1709325090265,-1744.39,0.00022465,2]
[316012501,1709325090274,-635.35,0.00022465,2]
[316012502,1709325090283,-7772.36,0.00022465,2]
[316012503,1709325090292,-4384.09,0.00022465,2]
[316012504,1709325090301,-757.05,0.00022465,2]
[316012505,1709325090310,-500.0,0.00022465,2]
[316012506,1709325090319,-500.0,0.00022465,2]
[316012507,1709325090328,-842.18,0.00022465,2]
[316012508,1709325090337,-825.49,0.00022465,2]
[316012509,1709325090347,-500.0,0.00022465,2]
[316012510,1709325090356,-500.0,0.00022465,2]
[316012511,1709325090365,-500.0,0.00022465,2]
[316012512,1709325090375,-1346.15,0.00022465,2]
[316012513,1709325090383,-1430.59,0.00022465,2]
[316012514,1709325090392,-1119.47,0.00022465,2]